bitfinex-derivatives/quotes_BTCF0:USTF0_20250719
["timestamp","ask_amount","ask_price","bid_price","bid_amount"]
[1752968394874,0.2788809,117900.0,117890.0,1.18315805]
[1752968396577,0.2788809,117900.0,117890.0,1.05493311]
[1752968396877,0.2788809,117900.0,117890.0,1.18315805]
[1752968397877,0.2788809,117900.0,117890.0,1.31138299]
[1752968399576,0.2788809,117900.0,117890.0,1.18315805]
[1752968399978,0.2788809,117900.0,117890.0,1.05493311]
[1752968400178,0.2788809,117900.0,117890.0,1.18315805]
[1752968401981,0.2788809,117900.0,117890.0,0.46155805]
[1752968402272,0.2788809,117900.0,117890.0,1.18315805]
[1752968405281,0.2788809,117900.0,117890.0,1.10693264]
[1752968406386,0.2788809,117900.0,117890.0,0.38533264]
[1752968406583,0.2788809,117900.0,117890.0,1.10693264]
[1752968408381,0.2788809,117900.0,117890.0,1.21333709]
[1752968409881,0.2025512,117910.0,117900.0,0.2573234]
[1752968410086,0.18724078,117910.0,117900.0,1.55708859]
[1752968410285,0.18724078,117910.0,117900.0,1.40704316]
[1752968410481,0.18724078,117910.0,117900.0,1.58723991]
[1752968410883,0.2542858,117920.0,117910.0,0.257309]
[1752968411084,0.2542858,117920.0,117910.0,0.82259763]
[1752968411787,0.2542858,117920.0,117910.0,0.69437269]
[1752968411989,0.2788358,117920.0,117910.0,0.82259763]
[1752968412586,0.2798358,117920.0,117910.0,0.82259763]
[1752968412987,0.2808358,117920.0,117910.0,0.82259763]
[1752968421494,0.2808358,117920.0,117910.0,0.69437269]
[1752968421693,0.2808358,117920.0,117910.0,0.82259763]
[1752968422295,0.2808358,117920.0,117910.0,0.69437269]
[1752968422496,0.2808358,117920.0,117910.0,0.82259763]
[1752968423697,0.2970858,117920.0,117910.0,0.82259763]
[1752968425598,0.2970858,117920.0,117910.0,0.69437269]
[1752968425898,0.2970858,117920.0,117910.0,0.82259763]
[1752968426098,0.2970858,117920.0,117910.0,1.18339763]
[1752968427501,0.2970858,117920.0,117910.0,1.05517269]
[1752968427700,0.2970858,117920.0,117910.0,1.18339763]
[1752968429505,0.2970858,117920.0,117910.0,1.10713394]
[1752968430708,0.2970858,117920.0,117910.0,0.978909]
[1752968430909,0.2970858,117920.0,117910.0,1.18339763]
[1752968434616,0.2970858,117920.0,117910.0,1.05517269]
[1752968434813,0.3120958,117920.0,117910.0,1.18339763]
[1752968436214,0.3120958,117920.0,117910.0,1.10713394]
[1752968437316,0.3156958,117920.0,117910.0,1.10713394]
[1752968437517,0.3401058,117920.0,117910.0,1.10713394]
[1752968437813,0.3401058,117920.0,117910.0,1.18332425]
[1752968438117,0.46833074,117920.0,117910.0,1.10713394]
[1752968438812,0.47491074,117920.0,117910.0,1.69449394]
[1752968439116,0.3466858,117920.0,117910.0,1.69449394]
[1752968439316,0.47491074,117920.0,117910.0,1.80089839]
[1752968440718,0.60313568,117920.0,117910.0,0.89297445]
[1752968440920,0.60313568,117920.0,117910.0,1.43502713]
[1752968441511,0.60313568,117920.0,117910.0,0.84758713]
[1752968441707,0.60313568,117920.0,117910.0,1.43510713]
[1752968445323,0.60313568,117920.0,117910.0,1.35884]
[1752968445922,0.3466858,117920.0,117910.0,1.35884]
[1752968446222,0.60313568,117920.0,117910.0,1.35884]
[1752968446423,0.60313568,117920.0,117910.0,0.77132]
[1752968446818,0.60313568,117920.0,117910.0,1.35908]
[1752968449019,0.60313568,117920.0,117910.0,0.77132]
[1752968451426,0.60313568,117920.0,117910.0,0.41052]
[1752968456830,0.60313568,117920.0,117910.0,0.42566]
[1752968457032,0.60313568,117920.0,117910.0,0.74622394]
[1752968457328,0.47491074,117920.0,117910.0,0.74622394]
[1752968457931,0.47491074,117920.0,117910.0,0.617999]
[1752968458126,0.47491074,117920.0,117910.0,0.57669494]
[1752968458326,0.47491074,117920.0,117910.0,0.74622394]
[1752968459322,0.47491074,117920.0,117910.0,0.44847]
[1752968459533,0.60313568,117920.0,117910.0,0.57669494]
[1752968460431,0.60313568,117920.0,117910.0,0.42566]
[1752968463632,0.3466858,117920.0,117910.0,0.42566]
[1752968463834,0.60313568,117920.0,117910.0,0.42566]
[1752968464035,0.3466858,117920.0,117910.0,0.42566]
[1752968464236,0.60313568,117920.0,117910.0,0.42566]
[1752968464640,0.3466858,117920.0,117910.0,0.42566]
[1752968464934,0.60313568,117920.0,117910.0,0.42566]
[1752968465135,0.60313568,117920.0,117910.0,0.595189]
[1752968465333,0.60313568,117920.0,117910.0,0.42566]
[1752968465535,0.60313568,117920.0,117910.0,0.55388494]
[1752968465733,0.60313568,117920.0,117910.0,0.42566]
[1752968468240,0.3466858,117920.0,117910.0,0.42566]
[1752968468429,0.60313568,117920.0,117910.0,0.42566]
[1752968473740,1.18985568,117920.0,117910.0,0.42566]
[1752968474546,0.60313568,117920.0,117910.0,0.42566]
[1752968474747,1.18981568,117920.0,117910.0,0.42566]
[1752968475746,0.9333658,117920.0,117910.0,0.42566]
[1752968476040,1.18981568,117920.0,117910.0,0.42566]
[1752968476741,1.18981568,117920.0,117910.0,0.50192713]
[1752968481743,1.18981568,117920.0,117910.0,0.14112713]
[1752968481943,1.18981568,117920.0,117910.0,0.50192713]
[1752968484739,1.18981568,117920.0,117910.0,0.07626713]
[1752968485039,1.18981568,117920.0,117900.0,0.16079931]
[1752968485040,0.258469,117910.0,117900.0,0.16079931]
[1752968485244,0.89294983,117910.0,117900.0,0.14526931]
[1752968485444,0.53214983,117910.0,117900.0,0.14526931]
[1752968485944,0.53214983,117910.0,117900.0,0.06900218]
[1752968486140,0.53214983,117910.0,117900.0,0.07100218]
[1752968487247,0.53214983,117910.0,117900.0,0.07000218]
[1752968487547,0.53214983,117910.0,117900.0,0.04340218]
[1752968487742,0.53214983,117910.0,117900.0,0.04240218]
[1752968489745,0.53214983,117910.0,117900.0,0.01910218]
[1752968490145,0.89294983,117910.0,117900.0,0.01910218]
[1752968491246,0.53214983,117910.0,117900.0,0.01910218]
[1752968492347,0.27569995,117910.0,117900.0,0.01910218]
[1752968492543,0.53214983,117910.0,117900.0,0.01910218]
[1752968495354,0.89294983,117910.0,117900.0,0.01910218]
[1752968507856,0.2046634,117900.0,117890.0,0.0499]
[1752968508058,1.10117328,117900.0,117890.0,0.0499]
[1752968508359,1.10117328,117900.0,117890.0,0.03961]
[1752968508554,1.10117328,117900.0,117890.0,0.0233]
[1752968508954,1.10117328,117900.0,117890.0,0.0243]
[1752968509962,1.10117328,117900.0,117890.0,0.002]
[1752968510964,1.10117328,117900.0,117890.0,0.02483]
[1752968511166,1.10117328,117900.0,117890.0,0.04678]
[1752968512355,1.10117328,117900.0,117890.0,0.002]
[1752968512765,1.10117328,117900.0,117880.0,0.13547887]
[1752968512766,0.2584878,117890.0,117880.0,0.13547887]
[1752968512965,0.2584878,117890.0,117880.0,0.05921174]
[1752968512966,0.8928608,117890.0,117880.0,0.05921174]
[1752968514166,0.8928608,117890.0,117880.0,0.06221174]
[1752968515968,0.5320608,117890.0,117880.0,0.42301174]
[1752968516969,0.5320608,117890.0,117880.0,0.37484174]
[1752968518870,0.5320608,117890.0,117880.0,0.39767174]
[1752968519372,0.40383586,117890.0,117880.0,0.39767174]
[1752968521268,0.40383586,117890.0,117880.0,0.03687174]
[1752968523873,0.27561092,117890.0,117880.0,0.03687174]
[1752968524078,0.40383586,117890.0,117880.0,0.01404174]
[1752968524979,0.40383586,117890.0,117880.0,0.03687174]
[1752968525581,0.40383586,117890.0,117880.0,0.06221174]
[1752968527978,0.40383586,117890.0,117880.0,0.42301174]
[1752968528174,0.40383586,117890.0,117880.0,0.06221174]
[1752968528479,0.5320608,117890.0,117880.0,0.06221174]
[1752968528774,0.5320608,117890.0,117880.0,0.42301174]
[1752968532281,0.40383586,117890.0,117880.0,0.43946174]
[1752968535784,0.5320608,117890.0,117880.0,0.43946174]
[1752968537685,0.5320608,117890.0,117880.0,0.07866174]
[1752968537986,0.5320608,117890.0,117880.0,0.43946174]
[1752968540292,0.40383586,117890.0,117880.0,0.43946174]
[1752968540589,0.95654586,117890.0,117880.0,0.46227174]
[1752968540786,0.95650586,117890.0,117880.0,0.76006888]
[1752968540985,0.95650586,117890.0,117880.0,0.83633601]
[1752968541386,0.95976586,117890.0,117880.0,0.83633601]
[1752968541585,0.98227586,117890.0,117880.0,0.83633601]
[1752968541791,0.98227586,117890.0,117880.0,0.70811107]
[1752968542892,0.98850586,117890.0,117880.0,0.70811107]
[1752968543989,0.98850586,117890.0,117880.0,0.53853887]
[1752968544586,0.98850586,117890.0,117880.0,0.70811107]
[1752968544988,0.98850586,117890.0,117880.0,0.68530107]
[1752968545188,0.98850586,117890.0,117880.0,0.51572887]
[1752968545790,0.98850586,117890.0,117880.0,0.53853887]
[1752968546490,0.86028092,117890.0,117880.0,0.53853887]
[1752968546690,0.98850586,117890.0,117880.0,0.53853887]
[1752968549293,0.98850586,117890.0,117880.0,0.51572887]
[1752968549596,1.1167308,117890.0,117880.0,0.51572887]
[1752968549892,0.98850586,117890.0,117880.0,0.51572887]
[1752968550393,0.98850586,117890.0,117880.0,0.53853887]
[1752968550892,0.98850586,117890.0,117880.0,0.51572887]
[1752968552593,0.98850586,117890.0,117880.0,0.43946174]
[1752968553095,0.98850586,117890.0,117880.0,0.07866174]
[1752968553396,0.98850586,117890.0,117880.0,0.51572887]
[1752968554488,1.4775308,117890.0,117880.0,0.03687174]
[1752968554694,1.1167308,117890.0,117880.0,0.01404174]
[1752968556499,1.1167308,117890.0,117880.0,0.03801174]
[1752968561695,1.1167308,117890.0,117880.0,0.04442174]
[1752968561895,1.1167308,117890.0,117880.0,0.06354174]
[1752968568002,1.1167308,117890.0,117880.0,0.42434174]
[1752968575200,1.1167308,117890.0,117880.0,0.44068174]
[1752968575406,0.98850586,117890.0,117880.0,0.44068174]
[1752968575604,1.03850586,117890.0,117880.0,0.44068174]
[1752968576307,0.45206586,117890.0,117880.0,0.44068174]
[1752968576508,1.03814586,117890.0,117880.0,0.44068174]
[1752968578306,1.03814586,117890.0,117880.0,0.07988174]
[1752968578503,0.45206586,117890.0,117880.0,0.07988174]
[1752968578707,1.03810586,117890.0,117880.0,0.07988174]
[1752968579408,1.1663308,117890.0,117880.0,0.61025394]
[1752968579608,1.03810586,117890.0,117880.0,0.24945394]
[1752968579806,1.03810586,117890.0,117880.0,0.44068174]
[1752968580006,1.03810586,117890.0,117880.0,0.07988174]
[1752968580203,1.03810586,117890.0,117880.0,0.44068174]
[1752968580505,1.03810586,117890.0,117880.0,0.07988174]
[1752968580804,1.03810586,117890.0,117880.0,0.44068174]
[1752968581610,1.03810586,117890.0,117880.0,0.24945394]
[1752968581810,1.03810586,117890.0,117880.0,0.61025394]
[1752968583612,1.03810586,117890.0,117880.0,0.44068174]
[1752968584314,1.03810586,117890.0,117880.0,0.61025394]
[1752968586917,0.98810586,117890.0,117880.0,0.61025394]
[1752968592124,0.98810586,117890.0,117880.0,0.44068174]
[1752968593228,0.98810586,117890.0,117880.0,0.61025394]
[1752968593525,0.40206586,117890.0,117880.0,0.61025394]
[1752968593726,1.1162508,117890.0,117880.0,0.61025394]
[1752968594426,1.1162508,117890.0,117880.0,0.24945394]
[1752968594728,1.1162508,117890.0,117880.0,0.61025394]
[1752968597928,1.1162508,117890.0,117880.0,0.24945394]
[1752968598128,1.1162508,117890.0,117880.0,0.61025394]
[1752968599828,0.39583586,117890.0,117880.0,0.76128888]
[1752968600124,0.99924586,117890.0,117880.0,1.19835601]
[1752968600327,0.99924586,117890.0,117880.0,1.07013107]
[1752968600527,0.99924586,117890.0,117880.0,1.19835601]
[1752968600829,0.99924586,117890.0,117880.0,0.83755601]
[1752968601521,0.99924586,117890.0,117880.0,1.19835601]
[1752968601828,0.99924586,117890.0,117880.0,0.83755601]
[1752968602922,0.99924586,117890.0,117880.0,0.70933107]
[1752968603124,0.99924586,117890.0,117880.0,0.83755601]
[1752968604326,0.99924586,117890.0,117880.0,0.70933107]
[1752968604629,0.99924586,117890.0,117880.0,0.83755601]
[1752968605129,0.87102092,117890.0,117880.0,1.78419601]
[1752968605330,0.99924586,117890.0,117880.0,1.78419601]
[1752968607032,1.02212586,117890.0,117880.0,1.78419601]
[1752968607829,1.02204586,117890.0,117880.0,1.78419601]
[1752968608129,1.02200586,117890.0,117880.0,1.78419601]
[1752968609031,0.43620586,117890.0,117880.0,1.78419601]
[1752968609228,1.02200586,117890.0,117880.0,1.78419601]
[1752968610040,0.43620586,117890.0,117880.0,1.78419601]
[1752968610233,1.02200586,117890.0,117880.0,1.78419601]
[1752968611034,0.43620586,117890.0,117880.0,1.78419601]
[1752968611236,1.02200586,117890.0,117880.0,1.78419601]
[1752968611836,1.02200586,117890.0,117880.0,1.65597107]
[1752968612025,0.43620586,117890.0,117880.0,1.65597107]
[1752968612225,1.02196586,117890.0,117880.0,1.78419601]
[1752968613135,0.43620586,117890.0,117880.0,1.78419601]
[1752968613336,1.02196586,117890.0,117880.0,1.78419601]
[1752968614031,1.02196586,117890.0,117880.0,1.42339601]
[1752968614241,1.02793586,117890.0,117880.0,1.29517107]
[1752968614938,1.02789586,117890.0,117880.0,1.21890394]
[1752968616039,1.02789586,117890.0,117880.0,1.29517107]
[1752968616439,0.44217586,117890.0,117880.0,1.29517107]
[1752968616637,1.02789586,117890.0,117880.0,1.29517107]
[1752968616940,1.02789586,117890.0,117880.0,1.12559887]
[1752968617240,1.02789586,117890.0,117880.0,1.29517097]
[1752968617840,1.02789586,117890.0,117880.0,1.21890384]
[1752968618645,1.02789586,117890.0,117880.0,1.29517097]
[1752968619245,1.02789586,117890.0,117880.0,1.12559887]
[1752968619441,1.02789586,117890.0,117880.0,1.29517097]
[1752968619743,1.02789586,117890.0,117880.0,1.12559887]
[1752968621240,1.02789586,117890.0,117880.0,1.29517097]
[1752968624654,1.02789586,117890.0,117880.0,1.21890384]
[1752968627346,1.02789586,117890.0,117880.0,1.29517097]
[1752968627747,0.89967092,117890.0,117880.0,1.29517097]
[1752968627950,1.02789586,117890.0,117880.0,1.42339591]
[1752968629149,0.89967092,117890.0,117880.0,1.42339591]
[1752968629348,1.02789586,117890.0,117880.0,1.42339591]
[1752968629955,1.02789586,117890.0,117880.0,1.25382381]
[1752968630954,1.02789586,117890.0,117880.0,1.12559887]
[1752968632251,0.89967092,117890.0,117880.0,1.12559887]
[1752968632451,1.02789586,117890.0,117880.0,1.12559887]
[1752968633053,1.01077274,117890.0,117880.0,1.12559887]
[1752968633253,1.01077274,117890.0,117880.0,1.29517097]
[1752968633455,1.01077274,117890.0,117880.0,1.12559887]
[1752968639964,1.01077274,117890.0,117880.0,0.53975887]
[1752968640160,1.01077274,117890.0,117880.0,1.12515887]
[1752968640660,1.01077274,117890.0,117880.0,1.33651287]
[1752968641361,1.01077274,117890.0,117880.0,0.75111287]
[1752968641564,1.01077274,117890.0,117880.0,1.33647287]
[1752968659681,0.8825478,117890.0,117880.0,1.33647287]
[1752968659878,1.01077274,117890.0,117880.0,1.33647287]
[1752968664181,1.01077274,117890.0,117880.0,1.31366287]
[1752968665688,0.8825478,117890.0,117880.0,1.31366287]
[1752968665885,1.01077274,117890.0,117880.0,1.31366287]
[1752968668280,1.01077274,117890.0,117880.0,1.33647287]
[1752968670189,0.8825478,117890.0,117880.0,1.33647287]
[1752968670391,1.01077274,117890.0,117880.0,1.33647287]
[1752968671889,1.01077274,117890.0,117880.0,1.26020574]
[1752968673888,1.01077274,117890.0,117880.0,0.89940574]
[1752968674087,1.01077274,117890.0,117880.0,1.26020574]
[1752968674784,1.01077274,117890.0,117880.0,0.89940574]
[1752968674982,1.01077274,117890.0,117880.0,1.26020574]
[1752968679890,0.8825478,117890.0,117880.0,1.26020574]
[1752968680086,1.01077274,117890.0,117880.0,1.26020574]
[1752968683393,1.01077274,117890.0,117880.0,1.33647287]
[1752968685996,1.01077274,117890.0,117880.0,0.75111287]
[1752968686191,1.01077274,117890.0,117880.0,1.33579287]
[1752968687292,1.13899768,117890.0,117880.0,0.71196287]
[1752968687498,1.13899768,117890.0,117880.0,0.85953574]
[1752968688296,1.13899768,117890.0,117880.0,0.27489574]
[1752968692505,1.13899768,117890.0,117880.0,0.63569574]
[1752968692904,1.13899768,117890.0,117880.0,0.27489574]
[1752968694306,0.8825478,117890.0,117880.0,0.27489574]
[1752968694504,1.13899768,117890.0,117880.0,0.27489574]
[1752968697506,1.13899768,117890.0,117880.0,0.63569574]
[1752968698710,1.13899768,117890.0,117880.0,0.65233574]
[1752968700713,1.13899768,117890.0,117880.0,0.72860287]
[1752968701011,1.13899768,117890.0,117880.0,0.65233574]
[1752968701211,1.13899768,117890.0,117880.0,0.72860287]
[1752968701405,1.13899768,117890.0,117880.0,0.65233574]
[1752968702912,1.13899768,117890.0,117880.0,0.72860287]
[1752968703312,1.01077274,117890.0,117880.0,0.72860287]
[1752968703516,1.01077274,117890.0,117880.0,0.65233574]
[1752968704719,1.01077274,117890.0,117880.0,0.72860287]
[1752968709617,1.01077274,117890.0,117880.0,0.85682781]
[1752968711412,1.01077274,117890.0,117880.0,0.49602781]
[1752968711619,1.01077274,117890.0,117880.0,0.65233574]
[1752968711915,1.01077274,117890.0,117880.0,0.29153574]
[1752968713819,0.8825478,117890.0,117880.0,0.29153574]
[1752968714016,1.01077274,117890.0,117880.0,0.29153574]
[1752968722820,1.01077274,117890.0,117880.0,0.36780287]
[1752968723018,1.01077274,117890.0,117880.0,0.72860287]
[1752968724022,0.8825478,117890.0,117880.0,0.72860287]
[1752968724321,1.01077274,117890.0,117880.0,0.72860287]
[1752968724730,1.01077274,117890.0,117880.0,0.71196287]
[1752968727523,1.01077274,117890.0,117880.0,0.63569574]
[1752968727715,1.01077274,117890.0,117880.0,0.71196287]
[1752968729319,1.01077274,117890.0,117880.0,0.63569574]
[1752968731017,1.01077274,117890.0,117880.0,0.27489574]
[1752968731219,0.8825478,117890.0,117880.0,0.63569574]
[1752968731422,1.01077274,117890.0,117880.0,0.65227574]
[1752968733928,1.01077274,117890.0,117880.0,0.29147574]
[1752968734227,1.01077274,117890.0,117880.0,0.65227574]
[1752968735923,1.01077274,117890.0,117880.0,0.29147574]
[1752968740129,1.13899768,117890.0,117880.0,0.29147574]
[1752968741437,0.8825478,117890.0,117880.0,0.29147574]
[1752968741735,1.01077274,117890.0,117880.0,0.29147574]
[1752968743737,1.01077274,117890.0,117880.0,0.27489574]
[1752968751338,1.01077274,117890.0,117880.0,0.29147574]
[1752968756238,1.13675768,117890.0,117880.0,0.29147574]
[1752968756541,1.13675768,117890.0,117880.0,0.27489574]
[1752968761443,0.8803078,117890.0,117880.0,0.27489574]
[1752968761643,1.13675768,117890.0,117880.0,0.27489574]
[1752968763548,1.00853274,117890.0,117880.0,0.27489574]
[1752968766649,1.13675768,117890.0,117880.0,0.27489574]
[1752968767849,1.00853274,117890.0,117880.0,0.27489574]
[1752968773459,1.13675768,117890.0,117880.0,0.27489574]
[1752968780562,1.00853274,117890.0,117880.0,0.27489574]
[1752968784968,1.36933274,117890.0,117880.0,0.27489574]
[1752968785765,1.49755768,117890.0,117880.0,0.27489574]
[1752968786169,1.36933274,117890.0,117880.0,0.27489574]
[1752968786774,1.49755768,117890.0,117880.0,0.27489574]
[1752968787267,1.36933274,117890.0,117880.0,0.27489574]
[1752968787868,1.49755768,117890.0,117880.0,0.27489574]
[1752968788659,1.49755768,117890.0,117880.0,0.1886341]
[1752968788876,1.51695078,117890.0,117880.0,0.1886341]
[1752968789371,1.51695078,117890.0,117880.0,0.1626737]
[1752968789566,1.51695078,117890.0,117880.0,0.0942685]
[1752968789975,1.49755768,117890.0,117880.0,0.0942685]
[1752968791377,1.51693825,117890.0,117880.0,0.0942685]
[1752968793378,1.49755768,117890.0,117880.0,0.0942685]
[1752968794974,1.51693056,117890.0,117880.0,0.0942685]
[1752968795169,1.49755768,117890.0,117880.0,0.0942685]
[1752968795880,1.51692848,117890.0,117880.0,0.0942685]
[1752968796280,1.49755768,117890.0,117880.0,0.0942685]
[1752968803978,0.91407768,117890.0,117880.0,0.0942685]
[1752968804283,0.39294274,117890.0,117880.0,0.97005048]
[1752968804479,0.2341677,117890.0,117880.0,0.97005048]
[1752968804680,0.03408,117890.0,117880.0,1.46597361]
[1752968804986,0.27134056,117900.0,117890.0,0.2502577]
[1752968805285,0.27134056,117900.0,117890.0,0.81541228]
[1752968805485,0.27134056,117900.0,117890.0,0.98505227]
[1752968807786,0.27134056,117900.0,117890.0,1.56801227]
[1752968808281,0.27134056,117900.0,117890.0,1.49188263]
[1752968808586,0.27134056,117900.0,117890.0,1.56801227]
[1752968808786,0.27134056,117900.0,117890.0,1.39837228]
[1752968810087,0.27134056,117900.0,117890.0,1.39899228]
[1752968810388,0.27134056,117900.0,117890.0,1.49326078]
[1752968811188,0.27134056,117900.0,117890.0,1.41713114]
[1752968812388,0.27134056,117900.0,117890.0,1.2889062]
[1752968812586,0.27134056,117900.0,117890.0,1.41713114]
[1752968814691,0.27134056,117900.0,117890.0,1.2889062]
[1752968814891,0.27134056,117900.0,117890.0,1.41713114]
[1752968818690,0.18656636,117900.0,117890.0,1.41713114]
[1752968819393,0.21570636,117900.0,117890.0,1.41713114]
[1752968820097,0.21570636,117900.0,117890.0,1.6497062]
[1752968820299,0.21570636,117900.0,117890.0,1.77793114]
[1752968820987,0.24051636,117900.0,117890.0,1.77793114]
[1752968825197,0.24051636,117900.0,117890.0,1.6497062]
[1752968825493,0.3687413,117900.0,117890.0,1.77793114]
[1752968826900,0.24051636,117900.0,117890.0,1.6497062]
[1752968827092,0.24051636,117900.0,117890.0,1.77793114]
[1752968828795,0.2235025,117900.0,117890.0,1.77793114]
[1752968830202,0.2235025,117900.0,117890.0,1.85406078]
[1752968834403,0.2235025,117900.0,117890.0,1.77793114]
[1752968834606,0.2235025,117900.0,117890.0,1.88433559]
[1752968837101,0.35172744,117900.0,117890.0,1.88433559]
[1752968838308,0.35172744,117900.0,117890.0,1.77793114]
[1752968838507,0.35172744,117900.0,117890.0,1.88433559]
[1752968840203,0.35172744,117900.0,117890.0,1.77793114]
[1752968841104,0.38753744,117900.0,117890.0,1.77793114]
[1752968842099,0.2593125,117900.0,117890.0,1.02541344]
[1752968842298,0.38753744,117900.0,117890.0,0.8744085]
[1752968842507,0.53281027,117900.0,117890.0,0.0942685]
[1752968847212,0.53581027,117900.0,117890.0,0.0942685]
[1752968847615,0.53281027,117900.0,117890.0,0.0942685]
[1752968847817,0.53581027,117900.0,117890.0,0.0942685]
[1752968848012,0.53681027,117900.0,117890.0,0.0942685]
[1752968849211,0.66503521,117900.0,117890.0,0.0942685]
[1752968849712,0.53681027,117900.0,117890.0,0.0942685]
[1752968861527,0.53681027,117900.0,117890.0,0.4550685]
[1752968866733,1.11921027,117900.0,117890.0,0.4550685]
[1752968867837,1.11921027,117900.0,117890.0,0.4717385]
[1752968868539,0.53681027,117900.0,117890.0,0.4717385]
[1752968868739,1.11921027,117900.0,117890.0,0.4717385]
[1752968870540,0.53681027,117900.0,117890.0,0.4717385]
[1752968870739,1.11917027,117900.0,117890.0,0.4717385]
[1752968871335,0.53681027,117900.0,117890.0,0.4717385]
[1752968871540,1.11917027,117900.0,117890.0,0.4717385]
[1752968872942,0.53681027,117900.0,117890.0,0.4717385]
[1752968873142,1.11917027,117900.0,117890.0,0.4717385]
[1752968874940,1.11913027,117900.0,117890.0,0.4717385]
[1752968876443,1.11913027,117900.0,117890.0,0.4871185]
[1752968879239,1.11913027,117900.0,117890.0,0.4550685]
[1752968879742,1.11913027,117900.0,117890.0,0.4715385]
[1752968879943,1.11905027,117900.0,117890.0,0.4869185]
[1752968883547,1.11805027,117900.0,117890.0,0.4869185]
[1752968883746,1.11505027,117900.0,117890.0,0.4869185]
[1752968884048,1.11605027,117900.0,117890.0,0.4869185]
[1752968884344,1.11601027,117900.0,117890.0,0.4869185]
[1752968888551,0.53381027,117900.0,117890.0,0.4869185]
[1752968888747,1.11597027,117900.0,117890.0,0.5096885]
[1752968889047,1.11597027,117900.0,117890.0,0.83078114]
[1752968889447,0.53381027,117900.0,117890.0,0.7025562]
[1752968889848,1.11597027,117900.0,117890.0,0.83078114]
[1752968890648,0.53381027,117900.0,117890.0,0.83078114]
[1752968890844,0.53381027,117900.0,117890.0,0.7025562]
[1752968898855,0.27736039,117900.0,117890.0,0.7025562]
[1752968899059,0.53381027,117900.0,117890.0,0.7025562]
[1752968899652,0.53381027,117900.0,117890.0,0.7023662]
[1752968907565,0.27736039,117900.0,117890.0,0.7023662]
[1752968907765,0.53381027,117900.0,117890.0,0.7023662]
[1752968911665,0.27736039,117900.0,117890.0,0.7023662]
[1752968911869,0.53381027,117900.0,117890.0,0.7023662]
[1752968915372,0.53381027,117900.0,117890.0,0.5328085]
[1752968916767,0.53381027,117900.0,117890.0,0.7023662]
[1752968917371,0.53381027,117900.0,117890.0,0.5328085]
[1752968918574,0.53381027,117900.0,117890.0,0.7023662]
[1752968918975,0.53381027,117900.0,117890.0,0.3415662]
[1752968919176,0.53381027,117900.0,117890.0,0.7023662]
[1752968919976,0.53381027,117900.0,117890.0,0.5328085]
[1752968922180,0.53381027,117900.0,117890.0,0.7023662]
[1752968922877,0.53381027,117900.0,117890.0,0.5328085]
[1752968923076,0.53381027,117900.0,117890.0,0.7023662]
[1752968925580,0.27736039,117900.0,117890.0,0.7023662]
[1752968925780,0.53381027,117900.0,117890.0,0.7023662]
[1752968930484,0.21972039,117900.0,117890.0,0.90675808]
[1752968930685,0.34794533,117900.0,117890.0,0.90675808]
[1752968931485,0.21674039,117900.0,117890.0,0.90675808]
[1752968931691,0.01804789,117900.0,117890.0,0.90675808]
[1752968932192,0.169542,117910.0,117900.0,0.2496334]
[1752968932381,0.169542,117910.0,117900.0,1.1923134]
[1752968932584,0.39632074,117920.0,117910.0,0.202449]
[1752968932784,0.39632074,117920.0,117910.0,0.75731639]
[1752968932785,0.37181074,117920.0,117910.0,0.75731639]
[1752968933294,0.39632074,117920.0,117910.0,0.75731639]
[1752968934090,0.37181074,117920.0,117910.0,0.75731639]
[1752968934288,0.37781074,117920.0,117910.0,0.75731639]
[1752968935294,0.37781074,117920.0,117910.0,0.85158489]
[1752968935792,0.2044946,117920.0,117910.0,0.85158489]
[1752968936588,0.01174,117920.0,117910.0,0.85158489]
[1752968937787,0.240867,117930.0,117920.0,0.2024346]
[1752968937984,0.240867,117930.0,117920.0,1.44865448]
[1752968938600,0.240867,117930.0,117920.0,1.51741607]
[1752968938799,0.240867,117930.0,117920.0,1.38919113]
[1752968939299,0.243867,117930.0,117920.0,1.38919113]
[1752968939599,0.245867,117930.0,117920.0,1.38919113]
[1752968939901,0.304387,117930.0,117920.0,1.38919113]
[1752968940296,0.304387,117930.0,117920.0,1.48345963]
[1752968940898,0.43261194,117930.0,117920.0,1.48345963]
[1752968941298,0.43261194,117930.0,117920.0,1.55962657]
[1752968941501,0.304387,117930.0,117920.0,1.55962657]
[1752968941894,0.304387,117930.0,117920.0,1.48345963]
[1752968942699,0.304387,117930.0,117920.0,1.35523469]
[1752968943101,0.304387,117930.0,117920.0,1.48345963]
[1752968945401,0.304387,117930.0,117920.0,1.35523469]
[1752968945603,0.304387,117930.0,117920.0,1.48345963]
[1752968946203,0.32146456,117930.0,117920.0,1.48345963]
[1752968947003,0.32146456,117930.0,117920.0,1.84425963]
[1752968962214,0.32146456,117930.0,117920.0,1.26245963]
[1752968962416,0.32146456,117930.0,117920.0,1.84397963]
[1752968965416,0.32146456,117930.0,117920.0,1.92014657]
[1752968967317,0.4496895,117930.0,117920.0,1.92014657]
[1752968967813,0.4496895,117930.0,117920.0,1.19854657]
[1752968968018,0.4496895,117930.0,117920.0,1.92014657]
[1752968969920,0.4496895,117930.0,117920.0,1.33862657]
[1752968970124,0.57791444,117930.0,117920.0,0.63291703]
[1752968970318,0.57791444,117930.0,117920.0,0.0942685]
[1752968974724,0.57791444,117930.0,117920.0,0.4550685]
[1752968976122,0.57791444,117930.0,117920.0,0.4713085]
[1752968986230,0.57791444,117930.0,117920.0,0.0639209]
[1752968986427,0.227779,117910.0,117900.0,0.51565694]
[1752968986628,0.51312888,117910.0,117900.0,0.41673]
[1752968986832,0.38490394,117910.0,117900.0,0.41673]
[1752968987030,0.38490394,117910.0,117900.0,0.43949]
[1752968989535,0.38490394,117910.0,117900.0,0.650844]
[1752968989736,0.38590394,117910.0,117900.0,0.650844]
[1752968991938,0.40274296,117910.0,117900.0,0.650844]
[1752968995647,0.40274296,117910.0,117900.0,0.72701094]
[1752968996644,0.27451802,117910.0,117900.0,0.72701094]
[1752968996847,0.40274296,117910.0,117900.0,0.72701094]
[1752969000451,0.40274296,117910.0,117900.0,0.70425094]
[1752969001147,0.40274296,117910.0,117900.0,0.72706094]
[1752969001948,0.40274296,117910.0,117900.0,1.02482928]
[1752969002145,0.38706296,117910.0,117900.0,1.02482928]
[1752969002654,0.18736802,117910.0,117900.0,1.15305422]
[1752969002855,0.18736802,117910.0,117900.0,1.07688728]
[1752969006457,0.18736802,117910.0,117900.0,1.1531282]
[1752969006654,0.32125296,117910.0,117900.0,1.1531282]
[1752969006854,0.34557296,117910.0,117900.0,1.1531282]
[1752969007658,0.36978296,117910.0,117900.0,1.02490326]
[1752969010255,0.36978296,117910.0,117900.0,1.05529605]
[1752969010455,0.36978296,117910.0,117900.0,1.07414596]
[1752969010958,0.36978296,117910.0,117900.0,0.71334596]
[1752969011259,0.36978296,117910.0,117900.0,1.43494596]
[1752969011654,0.36978296,117910.0,117900.0,2.01614596]
[1752969011959,0.36978296,117910.0,117900.0,1.43494596]
[1752969012159,0.36978296,117910.0,117900.0,2.01614596]
[1752969012361,0.36978296,117910.0,117900.0,1.43494596]
[1752969012664,0.36978296,117910.0,117900.0,2.01614596]